bitfinex-derivatives/quotes_BNBF0:USTF0_20260110
["timestamp","ask_amount","ask_price","bid_price","bid_amount"]
[1768069534069,0.19098423,911.47,910.45,0.68619159]
[1768069534265,0.19098423,911.47,910.46,0.68619159]
[1768069534463,0.19098423,911.47,910.47,0.68619159]
[1768069534769,0.19098423,911.47,910.35,2.337]
[1768069534969,0.19098423,911.47,910.36,0.68648559]
[1768069535164,0.19098423,911.47,910.37,0.68648559]
[1768069535370,0.19098423,911.47,910.38,0.68648559]
[1768069535666,0.19098423,911.47,910.39,0.68648559]
[1768069535866,0.19098423,911.47,910.4,0.68648559]
[1768069536069,0.19098423,911.47,910.41,0.68648559]
[1768069536370,0.19098423,911.47,910.42,0.68648559]
[1768069536568,0.19098423,911.47,910.43,0.68648559]
[1768069536769,0.19098423,911.47,910.44,0.68648559]
[1768069536968,0.19098423,911.47,910.45,0.68648559]
[1768069537169,0.19098423,911.47,910.46,0.68648559]
[1768069537366,0.19098423,911.47,910.47,0.68648559]
[1768069537671,0.19098423,911.47,910.48,0.68648559]
[1768069537870,0.19098423,911.47,910.49,0.68648559]
[1768069538066,0.19098423,911.47,910.35,2.337]
[1768069538272,0.19098423,911.47,910.36,0.69012837]
[1768069538470,0.19098423,911.47,910.37,0.69012837]
[1768069538769,0.19098423,911.47,910.38,0.69012837]
[1768069538971,0.19098423,911.47,910.39,0.69012837]
[1768069539171,0.19098423,911.47,910.4,0.69012837]
[1768069539372,0.19098423,911.47,910.41,0.69012837]
[1768069539573,0.19098423,911.47,910.42,0.69012837]
[1768069539772,0.19098423,911.47,910.43,0.69012837]
[1768069539969,0.19098423,911.47,910.44,0.69012837]
[1768069540269,0.19098423,911.47,910.45,0.69012837]
[1768069540470,0.19098423,911.47,910.46,0.69012837]
[1768069540769,0.19098423,911.47,910.47,0.69012837]
[1768069541072,0.19098423,911.47,910.48,0.69012837]
[1768069541272,0.19098423,911.47,910.49,0.69012837]
[1768069541473,0.19098423,911.47,910.5,0.69012837]
[1768069541674,0.19098423,911.47,910.51,0.69012837]
[1768069541870,0.19098423,911.47,910.52,0.69012837]
[1768069542173,0.19098423,911.47,910.35,2.337]
[1768069542174,0.19098423,911.47,910.53,0.69012837]
[1768069542371,0.19098423,911.47,910.54,0.69122088]
[1768069542677,0.19098423,911.47,910.55,0.69122088]
[1768069542975,0.19098423,911.47,910.35,2.337]
[1768069543174,0.19098423,911.47,910.36,0.69122088]
[1768069543372,0.19098423,911.47,910.37,0.69122088]
[1768069543572,0.19098423,911.47,910.38,0.69122088]
[1768069543774,0.19098423,911.47,910.39,0.69122088]
[1768069544069,0.19098423,911.47,910.4,0.69122088]
[1768069544273,0.19098423,911.47,910.41,0.69122088]
[1768069544474,0.19098423,911.47,910.42,0.69122088]
[1768069544675,0.19098423,911.47,910.43,0.69122088]
[1768069544875,0.19098423,911.47,910.44,0.69122088]
[1768069545076,0.19098423,911.47,910.45,0.69122088]
[1768069545375,0.19098423,911.47,910.46,0.69122088]
[1768069545670,0.19098423,911.47,910.47,0.69122088]
[1768069545973,0.19098423,911.47,910.48,0.69122088]
[1768069546174,0.19098423,911.47,910.49,0.69122088]
[1768069546374,0.19098423,911.47,910.5,0.69122088]
[1768069546570,0.19098423,911.47,910.51,0.69122088]
[1768069546769,0.19098423,911.47,910.52,0.69122088]
[1768069546972,0.19098423,911.47,910.53,0.69122088]
[1768069547275,0.19098423,911.47,910.54,0.69122088]
[1768069547470,0.19098423,911.47,910.55,0.69122088]
[1768069547675,0.19098423,911.47,910.56,0.69122088]
[1768069547869,0.19098423,911.47,910.57,0.69122088]
[1768069548174,0.19098423,911.47,910.58,0.69122088]
[1768069548376,0.19098423,911.47,910.59,0.69122088]
[1768069548577,0.19098423,911.47,910.6,0.69122088]
[1768069548778,0.19098423,911.47,910.61,0.69122088]
[1768069548975,0.19098423,911.47,910.62,0.69122088]
[1768069549176,0.19098423,911.47,910.35,2.337]
[1768069549379,0.19098423,911.47,910.36,0.69253358]
[1768069549578,0.19098423,911.47,910.37,0.69253358]
[1768069549879,0.19098423,911.47,910.38,0.69253358]
[1768069550080,0.19098423,911.47,910.39,0.69253358]
[1768069550280,0.19098423,911.47,910.4,0.69253358]
[1768069550480,0.19098423,911.47,910.41,0.69253358]
[1768069550682,0.19098423,911.47,910.42,0.69253358]
[1768069550876,0.19098423,911.47,910.43,0.69253358]
[1768069551179,0.19098423,911.47,910.44,0.69253358]
[1768069551377,0.19098423,911.47,910.45,0.69253358]
[1768069551580,0.19098423,911.47,910.46,0.69253358]
[1768069551781,0.19098423,911.47,910.47,0.69253358]
[1768069551981,0.19098423,911.47,910.48,0.69253358]
[1768069552283,0.19098423,911.47,910.49,0.69253358]
[1768069552483,0.19098423,911.47,910.5,0.69253358]
[1768069552679,0.19098423,911.47,910.51,0.69253358]
[1768069552983,0.19098423,911.47,910.52,0.69253358]
[1768069553177,0.19098423,911.47,910.53,0.69253358]
[1768069553383,0.19098423,911.47,910.54,0.69253358]
[1768069553681,0.19098423,911.47,910.55,0.69253358]
[1768069553882,0.19098423,911.47,910.56,0.69253358]
[1768069554184,0.19098423,911.47,910.57,0.69253358]
[1768069554382,0.19098423,911.47,910.58,0.69253358]
[1768069554682,0.19098423,911.47,910.59,0.69253358]
[1768069554884,0.19098423,911.47,910.6,0.69253358]
[1768069555079,0.19098423,911.47,910.35,2.337]
[1768069555280,0.19098423,911.47,910.36,0.69253701]
[1768069555485,0.19098423,911.47,910.37,0.69253701]
[1768069555682,0.19098423,911.47,910.38,0.69253701]
[1768069555882,0.19098423,911.47,910.39,0.69253701]
[1768069556080,0.19098423,911.47,910.4,0.69253701]
[1768069556382,0.19098423,911.47,910.41,0.69253701]
[1768069556585,0.19098423,911.47,910.42,0.69253701]
[1768069556785,0.19098423,911.47,910.43,0.69253701]
[1768069556984,0.19098423,911.47,910.44,0.69253701]
[1768069557281,0.19098423,911.47,910.45,0.69253701]
[1768069557480,0.19098423,911.47,910.46,0.69253701]
[1768069557785,0.19098423,911.47,910.47,0.69253701]
[1768069557981,0.19098423,911.47,910.48,0.69253701]
[1768069558186,0.19098423,911.47,910.49,0.69253701]
[1768069558383,0.19098423,911.47,910.5,0.69253701]
[1768069558686,0.19098423,911.47,910.51,0.69253701]
[1768069558882,0.19098423,911.47,910.52,0.69253701]
[1768069559082,0.19098423,911.47,910.53,0.69253701]
[1768069559286,0.19098423,911.47,910.54,0.69253701]
[1768069559481,0.19098423,911.47,910.35,2.337]
[1768069559686,0.19098423,911.47,910.36,0.69258635]
[1768069559886,0.19098423,911.47,910.37,0.69258635]
[1768069560083,0.19098423,911.47,910.38,0.69258635]
[1768069560284,0.19098423,911.47,910.39,0.69258635]
[1768069560485,0.19098423,911.47,910.4,0.69258635]
[1768069560684,0.19098423,911.47,910.41,0.69258635]
[1768069560887,0.19098423,911.47,910.42,0.69258635]
[1768069561086,0.19098423,911.47,910.43,0.69258635]
[1768069561384,0.19098423,911.47,910.44,0.69258635]
[1768069561584,0.19098423,911.47,910.45,0.69258635]
[1768069561785,0.19098423,911.47,910.46,0.69258635]
[1768069562084,0.19098423,911.47,910.47,0.69258635]
[1768069562283,0.19098423,911.47,910.48,0.69258635]
[1768069562490,0.19098423,911.47,910.49,0.69258635]
[1768069562691,0.19098423,911.47,910.5,0.69258635]
[1768069562888,0.19098423,911.47,910.51,0.69258635]
[1768069563087,0.19098423,911.47,910.52,0.69258635]
[1768069563389,0.19098423,911.47,910.53,0.69258635]
[1768069563584,0.19098423,911.47,910.54,0.69258635]
[1768069563887,0.19098423,911.47,910.35,2.337]
[1768069564088,0.19098423,911.47,910.36,0.6926196]
[1768069564283,0.19098423,911.47,910.37,0.6926196]
[1768069564489,0.19098423,911.47,910.38,0.6926196]
[1768069564787,0.19098423,911.47,910.39,0.6926196]
[1768069564984,0.19098423,911.47,910.4,0.6926196]
[1768069565190,0.19098423,911.47,910.41,0.6926196]
[1768069565384,0.19098423,911.47,910.42,0.6926196]
[1768069565584,0.19098423,911.47,910.43,0.6926196]
[1768069565889,0.19098423,911.47,910.44,0.6926196]
[1768069566085,0.19098423,911.47,910.45,0.6926196]
[1768069566285,0.19098423,911.47,910.46,0.6926196]
[1768069566585,0.19098423,911.47,910.47,0.6926196]
[1768069566790,0.19098423,911.47,910.48,0.6926196]
[1768069566987,0.19098423,911.47,910.49,0.6926196]
[1768069567190,0.19098423,911.47,910.5,0.6926196]
[1768069567392,0.19098423,911.47,910.51,0.6926196]
[1768069567587,0.19098423,911.47,910.52,0.6926196]
[1768069567787,0.19098423,911.47,910.53,0.6926196]
[1768069567989,0.19098423,911.47,910.54,0.6926196]
[1768069568185,0.19098423,911.47,910.55,0.6926196]
[1768069568387,0.19098423,911.47,910.56,0.6926196]
[1768069568587,0.19098423,911.47,910.57,0.6926196]
[1768069568787,0.19098423,911.47,910.58,0.6926196]
[1768069568990,0.19098423,911.47,910.59,0.6926196]
[1768069569188,0.19098423,911.47,910.6,0.6926196]
[1768069569390,0.19098423,911.47,910.61,0.6926196]
[1768069569590,0.19098423,911.47,910.62,0.6926196]
[1768069569790,0.19098423,911.47,910.63,0.6926196]
[1768069570090,0.19098423,911.47,910.64,0.6926196]
[1768069570291,0.19098423,911.47,910.35,3.16070299]
[1768069570591,0.19098423,911.47,910.36,0.69260159]
[1768069570787,0.19098423,911.47,910.37,0.69260159]
[1768069570991,0.19098423,911.47,910.38,0.69260159]
[1768069571193,0.19098423,911.47,910.39,0.69260159]
[1768069571490,0.19098423,911.47,910.4,0.69260159]
[1768069571693,0.19098423,911.47,910.41,0.69260159]
[1768069571892,0.19098423,911.47,910.42,0.69260159]
[1768069572093,0.19098423,911.47,910.43,0.69260159]
[1768069572292,0.19098423,911.47,910.44,0.69260159]
[1768069572495,0.19098423,911.47,910.45,0.69260159]
[1768069572692,0.19098423,911.47,910.46,0.69260159]
[1768069572995,0.19098423,911.47,910.47,0.69260159]
[1768069573197,0.19098423,911.47,910.48,0.69260159]
[1768069573496,0.19098423,911.47,910.49,0.69260159]
[1768069573795,0.19098423,911.47,910.5,0.69260159]
[1768069573993,0.19098423,911.47,910.51,0.69260159]
[1768069574296,0.19098423,911.47,910.52,0.69260159]
[1768069574496,0.19098423,911.47,910.53,0.69260159]
[1768069574696,0.19098423,911.47,910.54,0.69260159]
[1768069574891,0.19098423,911.47,910.55,0.69260159]
[1768069575097,0.19098423,911.47,910.56,0.69260159]
[1768069575297,0.19098423,911.47,910.57,0.69260159]
[1768069575496,0.19098423,911.47,910.58,0.69260159]
[1768069575697,0.19098423,911.47,910.59,0.69260159]
[1768069575996,0.19098423,911.47,910.6,0.69260159]
[1768069576197,0.19098423,911.47,910.33,0.82273331]
[1768069576198,0.19098423,911.47,910.61,0.69260159]
[1768069576497,0.19098423,911.47,910.62,0.69260159]
[1768069576695,0.19098423,911.47,910.33,0.82273331]
[1768069576898,0.19098423,911.47,910.34,0.69276582]
[1768069577096,0.19098423,911.47,910.35,0.69276582]
[1768069577296,0.19098423,911.47,910.36,0.69276582]
[1768069577494,0.19098423,911.47,910.37,0.69276582]
[1768069577698,0.19098423,911.47,910.38,0.69276582]
[1768069577899,0.19098423,911.47,910.39,0.69276582]
[1768069578096,0.19098423,911.47,910.39,2.429]
[1768069594118,0.19098423,911.47,909.87,0.82273331]
[1768069594418,0.19098423,911.47,909.88,0.6901373]
[1768069594619,0.19098423,911.47,909.89,0.6901373]
[1768069594819,0.19098423,911.47,909.9,0.6901373]
[1768069595018,0.19098423,911.47,909.91,0.6901373]
[1768069595215,0.19098423,911.47,909.92,0.6901373]
[1768069595519,0.19098423,911.47,909.93,0.6901373]
[1768069595720,0.19098423,911.47,909.94,0.6901373]
[1768069595919,0.19098423,911.47,909.95,0.6901373]
[1768069596217,0.19098423,911.47,909.84,0.82273331]
[1768069596218,0.19098423,911.47,909.96,0.6901373]
[1768069596419,0.19098423,911.47,909.97,0.6901373]
[1768069596616,0.19098423,911.47,909.98,0.6901373]
[1768069596915,0.19098423,911.47,909.99,0.6901373]
[1768069597119,0.19098423,911.47,910.0,0.6901373]
[1768069597317,0.19098423,911.47,910.01,0.6901373]
[1768069597519,0.19098423,911.47,910.02,0.6901373]
[1768069597720,0.19098423,911.47,910.03,0.6901373]
[1768069598017,0.19098423,911.47,910.04,0.6901373]
[1768069598221,0.19098423,911.47,910.05,0.6901373]
[1768069598417,0.19098423,911.47,910.06,0.6901373]
[1768069598623,0.19098423,911.47,910.07,0.6901373]
[1768069598922,0.19098423,911.47,910.08,0.6901373]
[1768069599120,0.19098423,911.47,910.09,0.6901373]
[1768069599323,0.19098423,911.47,910.1,0.6901373]
[1768069599523,0.19098423,911.47,910.11,0.6901373]
[1768069599720,0.19098423,911.47,910.12,0.6901373]
[1768069599924,0.19098423,911.47,910.13,0.6901373]
[1768069600222,0.19098423,911.47,909.95,7.92907774]
[1768069600423,0.19098423,911.47,909.96,0.69091282]
[1768069600622,0.19098423,911.47,909.97,0.69091282]
[1768069600819,0.19098423,911.47,909.98,0.69091282]
[1768069601022,0.19098423,911.47,909.99,0.69091282]
[1768069601225,0.19098423,911.47,910.0,0.69091282]
[1768069601425,0.19098423,911.47,910.01,0.69091282]
[1768069601722,0.19098423,911.47,910.02,0.69091282]
[1768069601924,0.19098423,911.47,910.03,0.69091282]
[1768069602221,0.19098423,911.47,910.04,0.69091282]
[1768069602420,0.19098423,911.47,910.05,0.69091282]
[1768069602625,0.19098423,911.47,910.06,0.69091282]
[1768069602822,0.19098423,911.47,910.07,0.69091282]
[1768069603026,0.19098423,911.47,910.08,0.69091282]
[1768069603224,0.19098423,911.47,910.09,0.69091282]
[1768069603423,0.19098423,911.47,910.1,0.69091282]
[1768069603627,0.19098423,911.47,910.11,0.69091282]
[1768069603828,0.19098423,911.47,910.12,0.69091282]
[1768069604028,0.19098423,911.47,910.13,0.69091282]
[1768069604325,0.19098423,911.47,910.14,0.69091282]
[1768069604629,0.19098423,911.47,909.95,7.92907774]
[1768069604928,0.19098423,911.47,909.96,0.69125614]
[1768069605125,0.19098423,911.47,909.97,0.69125614]
[1768069605329,0.19098423,911.47,909.98,0.69125614]
[1768069605523,0.19098423,911.47,909.99,0.69125614]
[1768069605726,0.19098423,911.47,910.0,0.69125614]
[1768069605925,0.19098423,911.47,910.01,0.69125614]
[1768069606130,0.19098423,911.47,910.02,0.69125614]
[1768069606329,0.19098423,911.47,910.03,0.69125614]
[1768069606524,0.19098423,911.47,910.04,0.69125614]
[1768069606727,0.19098423,911.47,910.05,0.69125614]
[1768069606930,0.19098423,911.47,910.06,0.69125614]
[1768069607129,0.19098423,911.47,910.07,0.69125614]
[1768069607327,0.19098423,911.47,910.08,0.69125614]
[1768069607529,0.19098423,911.47,910.09,0.69125614]
[1768069607731,0.19098423,911.47,910.1,0.69125614]
[1768069608032,0.19098423,911.47,910.11,0.69125614]
[1768069608232,0.19098423,911.47,910.12,0.69125614]
[1768069608428,0.19098423,911.47,910.13,0.69125614]
[1768069608627,0.19098423,911.47,909.95,7.92907774]
[1768069608829,0.19098423,911.47,909.96,0.69142385]
[1768069609029,0.19098423,911.47,909.97,0.69142385]
[1768069609227,0.19098423,911.47,909.98,0.69142385]
[1768069609433,0.19098423,911.47,909.99,0.69142385]
[1768069609632,0.19098423,911.47,910.0,0.69142385]
[1768069609830,0.19098423,911.47,910.01,0.69142385]
[1768069610131,0.19098423,911.47,910.02,0.69142385]
[1768069610331,0.19098423,911.47,910.03,0.69142385]
[1768069610535,0.19098423,911.47,910.04,0.69142385]
[1768069610732,0.19098423,911.47,910.05,0.69142385]
[1768069610935,0.19098423,911.47,910.06,0.69142385]
[1768069611135,0.19098423,911.47,910.07,0.69142385]
[1768069611332,0.19098423,911.47,910.08,0.69142385]
[1768069611535,0.19098423,911.47,910.09,0.69142385]
[1768069611735,0.19098423,911.47,910.1,0.69142385]
[1768069611932,0.19098423,911.47,910.11,0.69142385]
[1768069612137,0.19098423,911.47,910.12,0.69142385]
[1768069612333,0.19098423,911.47,910.13,0.69142385]
[1768069612532,0.19098423,911.47,910.14,0.69142385]
[1768069612836,0.19098423,911.47,910.15,0.69142385]
[1768069613033,0.19098423,911.47,909.95,7.92907774]
[1768069613234,0.19098423,911.47,909.96,0.69186624]
[1768069613434,0.19098423,911.47,909.97,0.69186624]
[1768069613632,0.19098423,911.47,909.98,0.69186624]
[1768069613833,0.19098423,911.47,909.99,0.69186624]
[1768069614034,0.19098423,911.47,910.0,0.69186624]
[1768069614235,0.19098423,911.47,909.95,7.92907774]
[1768069614236,0.19098423,911.47,910.01,0.69186624]
[1768069614436,0.19098423,911.47,910.02,0.69186624]
[1768069614639,0.19098423,911.47,910.03,0.69186624]
[1768069614837,0.19098423,911.47,910.04,0.69186624]
[1768069615133,0.19098423,911.47,910.05,0.69186624]
[1768069615338,0.19098423,911.47,910.06,0.69186624]
[1768069615632,0.19098423,911.47,910.07,0.69186624]
[1768069615833,0.19098423,911.47,910.08,0.69186624]
[1768069616034,0.19098423,911.47,910.09,0.69186624]
[1768069616335,0.19098423,911.47,910.1,0.69186624]
[1768069616535,0.19098423,911.47,910.11,0.69186624]
[1768069616734,0.19098423,911.47,910.12,0.69186624]
[1768069616938,0.19098423,911.47,910.13,0.69186624]
[1768069617139,0.19098423,911.47,910.14,0.69186624]
[1768069617338,0.19098423,911.47,910.15,0.69186624]
[1768069617636,0.19098423,911.47,910.16,0.69186624]
[1768069617838,0.19098423,911.47,910.17,0.69186624]
[1768069618137,0.19098423,911.47,910.18,0.69186624]
[1768069618337,0.19098423,911.47,910.19,0.69186624]
[1768069618538,0.19098423,911.47,910.2,0.69186624]
[1768069618834,0.19098423,911.47,910.21,0.69186624]
[1768069619036,0.19098423,911.47,910.22,0.69186624]
[1768069619233,0.19098423,911.47,910.23,0.69186624]
[1768069619539,0.19098423,911.47,910.24,0.69186624]
[1768069619740,0.19098423,911.47,910.25,0.69186624]
[1768069619938,0.19098423,911.47,910.26,0.69186624]
[1768069620136,0.19098423,911.47,910.27,0.69186624]
[1768069620440,0.19098423,911.47,910.28,0.69186624]
[1768069620634,0.19098423,911.47,910.29,0.69186624]
[1768069620838,0.19098423,911.47,910.3,0.69186624]
[1768069621037,0.19098423,911.47,910.08,2.503]
[1768069621240,0.19098423,911.47,910.09,0.69408421]
[1768069621437,0.19098423,911.47,910.1,0.69408421]
[1768069621642,0.19098423,911.47,910.11,0.69408421]
[1768069621838,0.19098423,911.47,910.12,0.69408421]
[1768069622041,0.19098423,911.47,910.13,0.69408421]
[1768069622241,0.19098423,911.47,910.14,0.69408421]
[1768069622442,0.19098423,911.47,910.15,0.69408421]
[1768069622642,0.19098423,911.47,910.16,0.69408421]
[1768069622941,0.19098423,911.47,910.17,0.69408421]
[1768069623139,0.19098423,911.47,910.18,0.69408421]
[1768069623338,0.19098423,911.47,910.19,0.69408421]
[1768069623541,0.19098423,911.47,910.2,0.69408421]
[1768069623741,0.19098423,911.47,910.21,0.69408421]
[1768069623937,0.19098423,911.47,910.22,0.69408421]
[1768069624139,0.19098423,911.47,910.23,0.69408421]
[1768069624342,0.19098423,911.47,910.24,0.69408421]
[1768069624540,0.19098423,911.47,910.25,0.69408421]
[1768069624743,0.19098423,911.47,910.26,0.69408421]
[1768069624943,0.19098423,911.47,910.27,0.69408421]
[1768069625144,0.19098423,911.47,910.28,0.69408421]
[1768069625440,0.19098423,911.47,910.29,0.69408421]
[1768069625644,0.19098423,911.47,910.3,0.69408421]
[1768069625841,0.19098423,911.47,910.31,0.69408421]
[1768069626040,0.19098423,911.47,910.32,0.69408421]
[1768069626241,0.19098423,911.47,910.33,0.69408421]
[1768069626440,0.19098423,911.47,910.08,2.503]
[1768069626740,0.19098423,911.47,910.09,0.69455678]
[1768069627043,0.19098423,911.47,910.1,0.69455678]
[1768069627343,0.19098423,911.47,910.11,0.69455678]
[1768069627544,0.19098423,911.47,910.12,0.69455678]
[1768069627744,0.19098423,911.47,910.13,0.69455678]
[1768069628043,0.19098423,911.47,910.14,0.69455678]
[1768069628245,0.19098423,911.47,910.15,0.69455678]
[1768069628440,0.19098423,911.47,910.16,0.69455678]
[1768069628643,0.19098423,911.47,910.17,0.69455678]
[1768069628845,0.19098423,911.47,910.18,0.69455678]
[1768069629145,0.19098423,911.47,910.19,0.69455678]
[1768069629344,0.19098423,911.47,910.2,0.69455678]
[1768069629542,0.19098423,911.47,910.21,0.69455678]
[1768069629841,0.19098423,911.47,910.22,0.69455678]
[1768069630047,0.19098423,911.47,910.23,0.69455678]
[1768069630246,0.19098423,911.47,910.24,0.69455678]
[1768069630443,0.19098423,911.47,910.25,0.69455678]
[1768069630648,0.19098423,911.47,910.26,0.69455678]
[1768069630945,0.19098423,911.47,910.27,0.69455678]
[1768069631144,0.19098423,911.47,910.28,0.69455678]
[1768069631349,0.19098423,911.47,910.29,0.69455678]
[1768069631649,0.19098423,911.47,910.3,0.69455678]
[1768069631952,0.19098423,911.47,910.31,0.69455678]
[1768069632148,0.19098423,911.47,910.32,0.69455678]
[1768069632353,0.19098423,911.47,910.33,0.69455678]
[1768069632547,0.19098423,911.47,910.08,2.503]
[1768069632749,0.19098423,911.47,910.09,0.69522035]
[1768069632957,0.19098423,911.47,910.1,0.69522035]
[1768069633154,0.19098423,911.47,910.11,0.69522035]
[1768069633358,0.19098423,911.47,910.12,0.69522035]
[1768069633558,0.19098423,911.47,910.13,0.69522035]
[1768069633755,0.19098423,911.47,910.14,0.69522035]
[1768069633959,0.19098423,911.47,910.15,0.69522035]
[1768069634160,0.19098423,911.47,910.16,0.69522035]
[1768069634359,0.19098423,911.47,910.17,0.69522035]
[1768069634556,0.19098423,911.47,910.18,0.69522035]
[1768069634760,0.19098423,911.47,910.19,0.69522035]
[1768069635061,0.19098423,911.47,910.2,0.69522035]
[1768069635259,0.19098423,911.47,910.21,0.69522035]
[1768069635456,0.19098423,911.47,910.22,0.69522035]
[1768069635659,0.19098423,911.47,910.23,0.69522035]
[1768069635860,0.19098423,911.47,910.24,0.69522035]
[1768069636061,0.19098423,911.47,910.25,0.69522035]
[1768069636260,0.19098423,911.47,910.26,0.69522035]
[1768069636561,0.19098423,911.47,910.27,0.69522035]
[1768069636758,0.19098423,911.47,910.28,0.69522035]
[1768069637056,0.19098423,911.47,910.29,0.69522035]
[1768069637358,0.19098423,911.47,910.3,0.69522035]
[1768069637557,0.19098423,911.47,910.31,0.69522035]
[1768069637761,0.19098423,911.47,910.32,0.69522035]
[1768069637962,0.19098423,911.47,910.33,0.69522035]
[1768069638158,0.19098423,911.47,910.34,0.69522035]
[1768069638358,0.19098423,911.47,910.35,0.69522035]
[1768069638665,0.19098423,911.47,910.36,0.69522035]
[1768069638963,0.19098423,911.47,910.37,0.69522035]
[1768069639259,0.19098423,911.47,910.38,0.69522035]
[1768069639463,0.19098423,911.47,910.39,0.69522035]
[1768069639661,0.19098423,911.47,910.4,0.69522035]
[1768069639864,0.19098423,911.47,910.41,0.69522035]
[1768069640064,0.19098423,911.47,910.42,0.69522035]
[1768069640261,0.19098423,911.47,910.43,0.69522035]
[1768069640464,0.19098423,911.47,910.44,0.69522035]
[1768069640665,0.19098423,911.47,910.45,0.69522035]
[1768069640861,0.19098423,911.47,910.46,0.69522035]
[1768069641066,0.19098423,911.47,910.47,0.69522035]
[1768069641361,0.19098423,911.47,910.48,0.69522035]
[1768069641561,0.19098423,911.47,910.49,0.69522035]
[1768069641766,0.19098423,911.47,910.2,0.82273331]
[1768069641962,0.19098423,911.47,910.21,0.69271236]
[1768069642266,0.19098423,911.47,910.22,0.69271236]
[1768069642462,0.19098423,911.47,910.23,0.69271236]
[1768069642766,0.19098423,911.47,910.08,2.503]
[1768069642967,0.19098423,911.47,910.19,0.82086956]
[1768069643265,0.19098423,911.47,910.2,0.69254184]
[1768069643463,0.19098423,911.47,910.21,0.69254184]
[1768069643664,0.19098423,911.47,910.22,0.69254184]
[1768069643869,0.19098423,911.47,910.23,0.69254184]
[1768069644064,0.19098423,911.47,910.24,0.69254184]
[1768069644366,0.19098423,911.47,910.25,0.69254184]
[1768069644567,0.19098423,911.47,910.26,0.69254184]
[1768069644863,0.19098423,911.47,910.27,0.69254184]
[1768069645067,0.19098423,911.47,910.28,0.69254184]
[1768069645266,0.19098423,911.47,910.29,0.69254184]
[1768069645468,0.19098423,911.47,910.3,0.69254184]
[1768069645670,0.19098423,911.47,910.31,0.69254184]
[1768069645968,0.19098423,911.47,910.32,0.69254184]
[1768069646168,0.19098423,911.47,910.33,0.69254184]
[1768069646365,0.19098423,911.47,910.34,0.69254184]
[1768069646565,0.19098423,911.47,910.35,0.69254184]
[1768069646768,0.19098423,911.47,910.36,0.69254184]
[1768069646969,0.19098423,911.47,910.37,0.69254184]
[1768069647266,0.19098423,911.47,910.38,0.69254184]
[1768069647466,0.19098423,911.47,910.39,0.69254184]
[1768069647668,0.19098423,911.47,910.4,0.69254184]
[1768069647869,0.19098423,911.47,910.41,0.69254184]
[1768069648069,0.19098423,911.47,910.42,0.69254184]
[1768069648269,0.19098423,911.47,910.43,0.69254184]
[1768069648469,0.19098423,911.47,910.44,0.69254184]
[1768069648668,0.19098423,911.47,910.15,0.82086956]
[1768069648865,0.19098423,911.47,910.16,0.69180007]
[1768069649063,0.19098423,911.47,910.15,0.82086956]
[1768069649064,0.19098423,911.47,910.17,0.69180007]
[1768069649269,0.19098423,911.47,910.18,0.69180007]
[1768069649564,0.19098423,911.47,910.19,0.69180007]
[1768069649870,0.19098423,911.47,910.2,0.69180007]
[1768069650170,0.19098423,911.47,910.21,0.69180007]
[1768069650369,0.19098423,911.47,910.22,0.69180007]
[1768069650571,0.19098423,911.47,910.23,0.69180007]
[1768069650770,0.19098423,911.47,910.24,0.69180007]
[1768069650971,0.19098423,911.47,910.25,0.69180007]
[1768069651172,0.19098423,911.47,910.26,0.69180007]
[1768069651370,0.19098423,911.47,910.27,0.69180007]
[1768069651572,0.19098423,911.47,910.28,0.69180007]
[1768069651772,0.19098423,911.47,910.29,0.69180007]
[1768069651970,0.19098423,911.47,910.3,0.69180007]
[1768069652173,0.19098423,911.47,910.31,0.69180007]
[1768069652370,0.19098423,911.47,910.32,0.69180007]
[1768069652673,0.19098423,911.47,910.33,0.69180007]
[1768069652970,0.19098423,911.47,910.34,0.69180007]
[1768069653175,0.19098423,911.47,910.35,0.69180007]
[1768069653474,0.19098423,911.47,910.36,0.69180007]
[1768069653674,0.19098423,911.47,910.37,0.69180007]
[1768069653974,0.19098423,911.47,910.38,0.69180007]
[1768069654174,0.19098423,911.47,910.39,0.69180007]
[1768069654474,0.19098423,911.47,910.4,0.69180007]
[1768069654674,0.19098423,911.47,910.41,0.69180007]
[1768069654874,0.19098423,911.47,910.42,0.69180007]
[1768069655175,0.19098423,911.47,910.08,2.503]
[1768069655373,0.19098423,911.47,910.09,0.69132167]
[1768069655574,0.19098423,911.47,910.1,0.69132167]
[1768069655774,0.19098423,911.47,910.11,0.69132167]
[1768069655975,0.19098423,911.47,910.12,0.69132167]
[1768069656175,0.19098423,911.47,910.13,0.69132167]
[1768069656373,0.19098423,911.47,910.14,0.69132167]
[1768069656572,0.19098423,911.47,910.15,0.69132167]
[1768069656773,0.19098423,911.47,910.16,0.69132167]
[1768069656976,0.19098423,911.47,910.17,0.69132167]
[1768069657272,0.19098423,911.47,910.18,0.69132167]
[1768069657473,0.19098423,911.47,910.19,0.69132167]
[1768069657679,0.19098423,911.47,910.2,0.69132167]
[1768069657879,0.19098423,911.47,910.21,0.69132167]
[1768069658074,0.19098423,911.47,910.22,0.69132167]
[1768069658279,0.19098423,911.47,910.23,0.69132167]
[1768069658480,0.19098423,911.47,910.24,0.69132167]
[1768069658781,0.19098423,911.47,910.25,0.69132167]
[1768069658980,0.19098423,911.47,910.26,0.69132167]
[1768069659177,0.19098423,911.47,910.27,0.69132167]